fUSD/lending_fUSD_20260118
["ID","MTS","AMOUNT","RATE_DAILY","PERIOD"]
[402602423,1768721456591,-500.0,0.00016438,2]
[402602424,1768721456601,-99.78554285,0.00016712,2]
[402602425,1768721456612,-151.0,0.00016712,2]
[402602426,1768721456622,-500.0,0.00016712,2]
[402602427,1768721456632,-193.030898,0.00016712,2]
[402602428,1768721456642,-4621.12124829,0.00016888,2]
[402602430,1768721456654,-760.79231516,0.00016888,2]
[402602432,1768721456740,-20.90960823,0.00016888,2]
[402602433,1768721456752,-489.64607935,0.00016888,2]
[402602434,1768721456764,-414.3325745,0.00016888,2]
[402602443,1768721457253,-483.79,0.00016082,2]
[402602445,1768721457265,-151.0,0.00016712,2]
[402602446,1768721457275,-12.43640714,0.00016712,2]
[402602447,1768721457287,-138.56359286,0.00016712,2]
[402602448,1768721457298,-193.030898,0.00016712,2]
[402602449,1768721457308,-77.54744668,0.00016712,2]
[402602451,1768721457326,-500.0,0.00016438,2]
[402602452,1768721457336,-73.45255332,0.00016712,2]
[402602453,1768721457346,-193.030898,0.00016712,2]
[402602454,1768721457356,-16726.80834783,0.00016888,2]
[402604256,1768721617481,769.8,0.00027397,120]
[402606759,1768722632107,-200.0,0.0001525,2]
[402606760,1768722632117,-2511.22,0.00015363,2]
[402606761,1768722632127,-1600.0,0.0001541,2]
[402606762,1768722632137,-300.0,0.00015797,2]
[402606763,1768722632147,-152.0,0.00015797,2]
[402606764,1768722632161,-791.51846656,0.00015797,2]
[402606765,1768722632217,-408.48153344,0.00015797,2]
[402606766,1768722632227,-578.20924308,0.00015798,2]
[402606767,1768722632237,-6086.09153268,0.00015798,2]
[402606768,1768722632248,-2913.90846732,0.00015798,2]
[402606769,1768722632257,-131.61153268,0.00015798,2]
[402606770,1768722632269,-4208.02539024,0.00015798,2]
[402606771,1768722632313,-603.84235597,0.00015798,2]
[402606772,1768722632325,-835.19021143,0.00015798,2]
[402606773,1768722632339,-567.05475244,0.00015798,2]
[402606775,1768722632350,-1024.16079093,0.00015798,2]
[402606777,1768722632361,-1630.11496631,0.00015798,2]
[402606778,1768722632371,-97.58443852,0.00015798,2]
[402606779,1768722632382,-4328.06566314,0.00015798,2]
[402606780,1768722632398,-4286.57718844,0.00015798,2]
[402606781,1768722632409,-287.7727099,0.00015798,2]
[402606782,1768722632419,-584.89260054,0.00015798,2]
[402606783,1768722632430,-509.00751515,0.00015798,2]
[402606784,1768722632442,-7906.09988431,0.00015798,2]
[402606785,1768722632451,-6455.74724642,0.00015798,2]
[402606790,1768722632508,-2544.25275358,0.00015798,2]
[402606795,1768722632522,-6070.6084939,0.00015798,2]
[402606797,1768722632534,-2929.3915061,0.00015798,2]
[402606798,1768722632543,-4331.06184654,0.00015798,2]
[402606799,1768722632555,-290.05642929,0.00015798,2]
[402606800,1768722632570,-2152.66125016,0.00015798,2]
[402606801,1768722632582,-2062.13091084,0.00015798,2]
[402606802,1768722632594,-164.08956317,0.00015798,2]
[402606803,1768722632603,-496.69216948,0.00015799,2]
[402606804,1768722632614,-926.05527075,0.00015799,2]
[402606805,1768722632626,-357.87831592,0.00015799,2]
[402606811,1768722638238,-166.67,0.00015705,2]
[402606812,1768722638248,-460.32,0.00015799,2]
[402606817,1768722638289,-2510.8565844,0.00015799,2]
[402606820,1768722638307,-846.33812054,0.00015799,2]
[402606821,1768722638347,-450.58499,0.00015799,2]
[402606822,1768722638391,-2951.27454891,0.00015799,2]
[402606823,1768722638401,-9000.0,0.00015854,2]
[402606824,1768722638411,-151.0,0.00015884,2]
[402606825,1768722638421,-151.0,0.00015905,2]
[402606826,1768722638431,-393.32732066,0.00015908,2]
[402606827,1768722638441,-322.6107,0.00015909,2]
[402606828,1768722638450,-1000.0,0.00015909,2]
[402606829,1768722638459,-2473.97125243,0.00015909,2]
[402606831,1768722638468,-1000.0,0.00015909,2]
[402606832,1768722638477,-250.0,0.00015909,2]
[402606833,1768722638487,-1000.0,0.00015909,2]
[402606834,1768722638497,-2000.0,0.00015909,2]
[402606835,1768722638507,-721.12765535,0.00015909,2]
[402606836,1768722638517,-250.0,0.00015909,2]
[402606837,1768722638527,-1000.0,0.00015909,2]
[402606839,1768722638537,-151.0,0.00015909,2]
[402606841,1768722638547,-2000.0,0.00015909,2]
[402606843,1768722638558,-1000.0,0.00015909,2]
[402606845,1768722638567,-250.0,0.00015909,2]
[402606847,1768722638577,-1000.0,0.00015909,2]
[402606849,1768722638588,-194.27224671,0.00015909,2]
[402606851,1768722638598,-2000.0,0.00015909,2]
[402606853,1768722638607,-1000.0,0.00015909,2]
[402606855,1768722638617,-1000.0,0.00015909,2]
[402606857,1768722638627,-250.0,0.00015909,2]
[402606859,1768722638636,-2000.0,0.00015909,2]
[402606861,1768722638646,-1000.0,0.00015909,2]
[402606863,1768722638655,-250.0,0.00015909,2]
[402606865,1768722638664,-1000.0,0.00015909,2]
[402606867,1768722638673,-2000.0,0.00015909,2]
[402606869,1768722638683,-194.416276,0.00015909,2]
[402606880,1768722640339,-805.583724,0.00015909,2]
[402606881,1768722640349,-250.0,0.00015909,2]
[402606882,1768722640360,-2000.0,0.00015909,2]
[402606883,1768722640370,-1000.0,0.00015909,2]
[402606884,1768722640379,-1000.0,0.00015909,2]
[402606885,1768722640388,-250.0,0.00015909,2]
[402606886,1768722640398,-2000.0,0.00015909,2]
[402606887,1768722640407,-1000.0,0.00015909,2]
[402606888,1768722640417,-416.46352438,0.00015909,2]
[402606889,1768722640429,-347.053942,0.00015909,2]
[402606890,1768722640542,-236.48253362,0.00015909,2]
[402606891,1768722640551,-250.0,0.00015909,2]
[402606892,1768722640560,-1182.36849208,0.00015909,2]
[402606893,1768722640572,-817.63150792,0.00015909,2]
[402606894,1768722640581,-1000.0,0.00015909,2]
[402606895,1768722640590,-1000.0,0.00015909,2]
[402606896,1768722640600,-276.66726776,0.00015909,2]
[402606897,1768722640609,-971.28134586,0.00015909,2]
[402606898,1768722640621,-28.71865414,0.00015909,2]
[402606899,1768722640630,-2000.0,0.00015909,2]
[402606900,1768722640639,-1000.0,0.00015909,2]
[402606901,1768722640648,-2000.0,0.00015909,2]
[402606902,1768722640658,-248.80517685,0.00015909,2]
[402606903,1768722640669,-751.19482315,0.00015909,2]
[402606904,1768722640678,-2000.0,0.00015909,2]
[402606905,1768722640687,-1000.0,0.00015909,2]
[402606906,1768722640696,-1000.0,0.00015909,2]
[402606907,1768722640706,-209.40437684,0.00015909,2]
[402606908,1768722640715,-500.0,0.00015909,2]
[402606909,1768722640726,-500.0,0.00015909,2]
[402606910,1768722640735,-500.0,0.00015909,2]
[402606911,1768722640745,-500.0,0.00015909,2]
[402606912,1768722640754,-500.0,0.00015909,2]
[402606913,1768722640764,-250.0,0.00015909,2]
[402606914,1768722640773,-500.0,0.00015909,2]
[402606915,1768722640783,-174.61919141,0.00015909,2]
[402606916,1768722640793,-574.12855637,0.00015909,2]
[402606917,1768722640803,-500.0,0.00015909,2]
[402606918,1768722640812,-250.0,0.00015909,2]
[402606919,1768722640822,-500.0,0.00015909,2]
[402606920,1768722640832,-500.0,0.00015909,2]
[402606921,1768722640842,-250.0,0.00015909,2]
[402606922,1768722640851,-500.0,0.00015909,2]
[402606923,1768722640860,-60.89189708,0.00015909,2]
[402606924,1768722640872,-439.10810292,0.00015909,2]
[402606925,1768722640887,-500.0,0.00015909,2]
[402606926,1768722640897,-250.0,0.00015909,2]
[402606927,1768722640906,-500.0,0.00015909,2]
[402606928,1768722640916,-500.0,0.00015909,2]
[402606929,1768722640925,-250.0,0.00015909,2]
[402606930,1768722640935,-500.0,0.00015909,2]
[402606931,1768722640945,-500.0,0.00015909,2]
[402606932,1768722640955,-250.0,0.00015909,2]
[402606933,1768722640964,-500.0,0.00015909,2]
[402606934,1768722640973,-250.0,0.00015909,2]
[402606935,1768722640983,-500.0,0.00015909,2]
[402606936,1768722640993,-250.0,0.00015909,2]
[402606937,1768722641003,-500.0,0.00015909,2]
[402606938,1768722641012,-250.0,0.00015909,2]
[402606939,1768722641022,-500.0,0.00015909,2]
[402606940,1768722641032,-250.0,0.00015909,2]
[402606941,1768722641042,-500.0,0.00015909,2]
[402606942,1768722641052,-1500.0,0.00015909,2]
[402606943,1768722641062,-250.0,0.00015909,2]
[402606944,1768722641071,-500.0,0.00015909,2]
[402606945,1768722641081,-1500.0,0.00015909,2]
[402606946,1768722641091,-1500.0,0.00015909,2]
[402606947,1768722641101,-1500.0,0.00015909,2]
[402606948,1768722641111,-1500.0,0.00015909,2]
[402606949,1768722641121,-4001.0,0.00015909,2]
[402606950,1768722641131,-1500.0,0.00015909,2]
[402606951,1768722641141,-620.0,0.00015909,2]
[402606952,1768722641150,-1500.0,0.00015909,2]
[402606953,1768722641160,-1500.0,0.00015909,2]
[402606954,1768722641170,-1500.0,0.00015909,2]
[402606955,1768722641179,-3000.0,0.00015909,2]
[402606956,1768722641189,-9000.0,0.00015909,2]
[402606957,1768722641199,-1500.0,0.00015909,2]
[402606958,1768722641208,-3000.0,0.00015909,2]
[402606959,1768722641218,-1500.0,0.00015909,2]
[402606960,1768722641227,-3000.0,0.00015909,2]
[402606961,1768722641236,-151.0,0.00015909,2]
[402606962,1768722641246,-1080.97654597,0.00015909,2]
[402606963,1768722641255,-151.0,0.00015909,2]
[402606964,1768722641265,-500.0,0.00015909,2]
[402606965,1768722641274,-500.0,0.00015909,2]
[402606966,1768722641283,-500.0,0.00015909,2]
[402606967,1768722641296,-449.75960483,0.00015909,2]
[402606968,1768722641317,-50.24039517,0.00015909,2]
[402606969,1768722641327,-500.0,0.00015909,2]
[402606970,1768722641338,-500.0,0.00015909,2]
[402606971,1768722641348,-500.0,0.00015909,2]
[402606972,1768722641357,-500.0,0.00015909,2]
[402606973,1768722641370,-531.95092078,0.00015909,2]
[402606974,1768722641379,-9000.0,0.00015964,2]
[402606975,1768722641389,-150.0,0.00016044,2]
[402606976,1768722641398,-150.0,0.00016082,2]
[402606977,1768722641407,-150.0,0.00016082,2]
[402606978,1768722641418,-483.79,0.000161,2]
[402606979,1768722641427,-150.0,0.00016102,2]
[402606980,1768722641436,-500.0,0.00016117,2]
[402606981,1768722641445,-164.62088964,0.00016137,2]
[402606982,1768722641455,-150.0,0.00016137,2]
[402606983,1768722641468,-160.75937536,0.00016164,2]
[402606984,1768722641478,-500.0,0.00016164,2]
[402606985,1768722641487,-500.0,0.00016164,2]
[402606986,1768722641496,-150.0,0.00016164,2]
[402606987,1768722641505,-500.0,0.00016164,2]
[402606988,1768722641514,-500.0,0.00016164,2]
[402606989,1768722641524,-285.12441334,0.00016164,2]
[402606990,1768722641533,-150.0,0.00016192,2]
[402606991,1768722641542,-150.0,0.000162,2]
[402606992,1768722641552,-150.0,0.000162,2]
[402606993,1768722641561,-150.0,0.000162,2]
[402606994,1768722641571,-150.0,0.000162,2]
[402606995,1768722641580,-150.0,0.000162,2]
[402606996,1768722641589,-150.0,0.000162,2]
[402606997,1768722641599,-150.0,0.000162,2]
[402606998,1768722641609,-150.0,0.000162,2]
[402606999,1768722641618,-150.0,0.000162,2]
[402607000,1768722641628,-500.0,0.00016219,2]
[402607001,1768722641637,-500.0,0.00016219,2]
[402607002,1768722641647,-150.0,0.00016219,2]
[402607003,1768722641656,-500.0,0.00016219,2]
[402607004,1768722641666,-500.0,0.00016219,2]
[402607005,1768722641675,-4588.47348686,0.00016228,2]
[402607006,1768722641686,-150.0,0.00016246,2]
[402607007,1768722641695,-500.0,0.00016274,2]
[402607008,1768722641714,-200.85753101,0.00016274,2]
[402607009,1768722641735,-211.68961379,0.00016274,2]
[402607010,1768722641747,-500.0,0.00016274,2]
[402607011,1768722641757,-500.0,0.00016274,2]
[402607012,1768722641766,-662.88,0.000163,2]
[402607013,1768722641775,-483.79,0.000163,2]
[402607014,1768722641785,-662.88,0.000163,2]
[402607015,1768722641794,-500.0,0.00016328,2]
[402607016,1768722641803,-500.0,0.00016328,2]
[402607017,1768722641813,-500.0,0.00016328,2]
[402607018,1768722641823,-2760.07141038,0.00016338,2]
[402607019,1768722641833,-178.74195607,0.00016338,2]
[402607020,1768722641842,-500.0,0.00016356,2]
[402607021,1768722641851,-500.0,0.00016356,2]
[402607022,1768722641861,-500.0,0.00016356,2]
[402607023,1768722641871,-150.0,0.00016364,2]
[402607024,1768722641879,-5888.0,0.00016364,2]
[402607025,1768722641889,-500.0,0.00016383,2]
[402607026,1768722641898,-545.51876054,0.00016383,2]
[402607027,1768722641908,-835.0,0.000164,2]
[402607028,1768722641917,-847.0,0.000164,2]
[402607029,1768722641926,-5888.0,0.00016411,2]
[402607030,1768722641936,-4588.47348681,0.00016414,2]
[402607031,1768722641945,-5888.0,0.00016437,2]
[402607032,1768722641955,-500.0,0.00016437,2]
[402607033,1768722641964,-500.0,0.00016438,2]
[402607034,1768722641974,-500.0,0.00016438,2]
[402607035,1768722641984,-500.0,0.00016438,2]
[402607036,1768722641993,-500.0,0.00016438,2]
[402607037,1768722642003,-500.0,0.00016438,2]
[402607038,1768722642013,-639.15,0.00016438,2]
[402607039,1768722642023,-500.0,0.00016438,2]
[402607040,1768722642032,-500.0,0.00016438,2]
[402607041,1768722642043,-500.0,0.00016438,2]
[402607042,1768722642053,-500.0,0.00016438,2]
[402607043,1768722642063,-500.0,0.00016438,2]
[402607044,1768722642074,-500.0,0.00016438,2]
[402607045,1768722642083,-500.0,0.00016438,2]
[402607046,1768722642092,-561.13850279,0.00016438,2]
[402607047,1768722642102,-500.0,0.00016438,2]
[402607048,1768722642111,-500.0,0.00016438,2]
[402607049,1768722642120,-592.19679103,0.00016438,2]
[402607050,1768722642129,-620.51,0.00016438,2]
[402607051,1768722642139,-530.06,0.00016438,2]
[402607052,1768722642150,-500.0,0.00016438,2]
[402607053,1768722642162,-500.0,0.00016438,2]
[402607054,1768722642173,-500.0,0.00016438,2]
[402607055,1768722642183,-500.0,0.00016438,2]
[402607056,1768722642192,-500.0,0.00016438,2]
[402607057,1768722642202,-562.26,0.00016438,2]
[402607058,1768722642211,-500.0,0.00016438,2]
[402607059,1768722642221,-736.02,0.00016438,2]
[402607060,1768722642230,-500.0,0.00016438,2]
[402607061,1768722642239,-500.0,0.00016438,2]
[402607062,1768722642249,-500.0,0.00016438,2]
[402607063,1768722642258,-500.0,0.00016438,2]
[402607064,1768722642267,-500.0,0.00016438,2]
[402607065,1768722642277,-500.0,0.00016438,2]
[402607066,1768722642287,-500.0,0.00016438,2]
[402607067,1768722642300,-500.0,0.00016438,2]
[402607068,1768722642309,-500.0,0.00016438,2]
[402607069,1768722642318,-500.0,0.00016438,2]
[402607070,1768722642327,-500.0,0.00016438,2]
[402607071,1768722642338,-500.0,0.00016438,2]
[402607072,1768722642347,-500.0,0.00016438,2]
[402607073,1768722642356,-559.76717123,0.00016438,2]
[402607074,1768722642366,-500.0,0.00016438,2]
[402607075,1768722642375,-500.0,0.00016438,2]
[402607076,1768722642384,-500.0,0.00016438,2]
[402607077,1768722642393,-500.0,0.00016438,2]
[402607078,1768722642403,-500.0,0.00016438,2]
[402607079,1768722642411,-500.0,0.00016438,2]
[402607080,1768722642420,-500.0,0.00016438,2]
[402607081,1768722642430,-500.0,0.00016438,2]
[402607082,1768722642439,-500.0,0.00016438,2]
[402607083,1768722642449,-500.0,0.00016438,2]
[402607084,1768722642459,-500.0,0.00016438,2]
[402607085,1768722642468,-500.0,0.00016438,2]
[402607086,1768722642477,-500.0,0.00016438,2]
[402607087,1768722642487,-203.92938,0.00016438,2]
[402607088,1768722642496,-203.92938,0.00016438,2]
[402607089,1768722642505,-500.0,0.00016438,2]
[402607090,1768722642514,-500.0,0.00016438,2]
[402607091,1768722642524,-500.0,0.00016438,2]
[402607092,1768722642534,-500.0,0.00016438,2]
[402607093,1768722642543,-500.0,0.00016438,2]
[402607094,1768722642552,-500.0,0.00016438,2]
[402607095,1768722642562,-500.0,0.00016438,2]
[402607096,1768722642571,-500.0,0.00016438,2]
[402607097,1768722642581,-500.0,0.00016438,2]
[402607098,1768722642590,-500.0,0.00016438,2]
[402607099,1768722642599,-500.0,0.00016438,2]
[402607100,1768722642607,-500.0,0.00016438,2]
[402607101,1768722642614,-500.0,0.00016438,2]
[402607102,1768722642623,-500.0,0.00016438,2]
[402607103,1768722642632,-500.0,0.00016438,2]
[402607104,1768722642641,-500.0,0.00016438,2]
[402607105,1768722642650,-500.0,0.00016438,2]
[402607106,1768722642659,-500.0,0.00016438,2]
[402607107,1768722642668,-500.0,0.00016438,2]
[402607108,1768722642678,-500.0,0.00016438,2]
[402607109,1768722642688,-500.0,0.00016438,2]
[402607110,1768722642697,-500.0,0.00016438,2]
[402607111,1768722642706,-500.0,0.00016438,2]
[402607112,1768722642716,-500.0,0.00016438,2]
[402607113,1768722642726,-500.0,0.00016438,2]
[402607114,1768722642735,-500.0,0.00016438,2]
[402607115,1768722642743,-500.0,0.00016438,2]
[402607116,1768722642753,-500.0,0.00016438,2]
[402607117,1768722642762,-500.0,0.00016438,2]
[402607118,1768722642771,-500.0,0.00016438,2]
[402607119,1768722642780,-500.0,0.00016438,2]
[402607120,1768722642790,-500.0,0.00016438,2]
[402607121,1768722642799,-500.0,0.00016438,2]
[402607122,1768722642808,-500.0,0.00016438,2]
[402607123,1768722642817,-500.0,0.00016438,2]
[402607124,1768722642826,-500.0,0.00016438,2]
[402607125,1768722642835,-500.0,0.00016438,2]
[402607126,1768722642845,-500.0,0.00016438,2]
[402607127,1768722642854,-500.0,0.00016438,2]
[402607128,1768722642863,-500.0,0.00016438,2]
[402607129,1768722642873,-500.0,0.00016438,2]
[402607130,1768722642882,-500.0,0.00016438,2]
[402607131,1768722642892,-500.0,0.00016438,2]
[402607132,1768722642902,-500.0,0.00016438,2]
[402607133,1768722642912,-340.0,0.00016438,2]
[402607134,1768722642922,-500.0,0.00016438,2]
[402607135,1768722642931,-500.0,0.00016438,2]
[402607136,1768722642941,-500.0,0.00016438,2]
[402607137,1768722642951,-500.0,0.00016438,2]
[402607138,1768722642960,-500.0,0.00016438,2]
[402607139,1768722642970,-500.0,0.00016438,2]
[402607140,1768722642979,-500.0,0.00016438,2]
[402607141,1768722642989,-500.0,0.00016438,2]
[402607142,1768722642999,-500.0,0.00016438,2]
[402607143,1768722643008,-500.0,0.00016438,2]
[402607144,1768722643018,-500.0,0.00016438,2]
[402607145,1768722643027,-500.0,0.00016438,2]
[402607146,1768722643038,-500.0,0.00016438,2]
[402607147,1768722643048,-500.0,0.00016438,2]
[402607149,1768722643058,-500.0,0.00016438,2]
[402607150,1768722643067,-500.0,0.00016438,2]
[402607152,1768722643077,-500.0,0.00016438,2]
[402607153,1768722643087,-500.0,0.00016438,2]
[402607154,1768722643097,-500.0,0.00016438,2]
[402607155,1768722643107,-500.0,0.00016438,2]
[402607156,1768722643117,-500.0,0.00016438,2]
[402607157,1768722643127,-500.0,0.00016438,2]
[402607158,1768722643137,-500.0,0.00016438,2]
[402607159,1768722643146,-500.0,0.00016438,2]
[402607160,1768722643155,-500.0,0.00016438,2]
[402607161,1768722643165,-500.0,0.00016438,2]
[402607163,1768722643175,-500.0,0.00016438,2]
[402607164,1768722643185,-500.0,0.00016438,2]
[402607165,1768722643195,-500.0,0.00016438,2]
[402607166,1768722643205,-500.0,0.00016438,2]
[402607167,1768722643214,-500.0,0.00016438,2]
[402607168,1768722643224,-500.0,0.00016438,2]
[402607169,1768722643234,-500.0,0.00016438,2]
[402607170,1768722643244,-500.0,0.00016438,2]
[402607171,1768722643253,-500.0,0.00016438,2]
[402607172,1768722643263,-500.0,0.00016438,2]
[402607173,1768722643272,-500.0,0.00016438,2]
[402607174,1768722643282,-500.0,0.00016438,2]
[402607175,1768722643296,-500.0,0.00016438,2]
[402607176,1768722643306,-500.0,0.00016438,2]
[402607177,1768722643315,-500.0,0.00016438,2]
[402607178,1768722643325,-519.96,0.00016438,2]
[402607179,1768722643336,-500.0,0.00016438,2]
[402607180,1768722643346,-500.0,0.00016438,2]
[402607181,1768722643355,-500.0,0.00016438,2]
[402607182,1768722643368,-500.0,0.00016438,2]
[402607183,1768722643377,-500.0,0.00016438,2]
[402607184,1768722643387,-959.02,0.00016438,2]
[402607185,1768722643396,-500.0,0.00016438,2]
[402607186,1768722643406,-529.64,0.00016438,2]
[402607187,1768722643415,-500.0,0.00016438,2]
[402607188,1768722643424,-500.0,0.00016438,2]
[402607189,1768722643433,-500.0,0.00016438,2]
[402607190,1768722643443,-500.0,0.00016438,2]
[402607193,1768722643689,-500.0,0.00016438,2]
[402607194,1768722643699,-500.0,0.00016438,2]
[402607195,1768722643708,-500.0,0.00016438,2]
[402607196,1768722643717,-500.0,0.00016438,2]
[402607197,1768722643726,-500.0,0.00016438,2]
[402607198,1768722643735,-500.0,0.00016438,2]
[402607199,1768722643744,-500.0,0.00016438,2]
[402607200,1768722643753,-520.35,0.00016438,2]
[402607201,1768722643762,-500.0,0.00016438,2]
[402607202,1768722643771,-500.0,0.00016438,2]
[402607203,1768722643781,-753.45,0.00016438,2]
[402607204,1768722643789,-500.0,0.00016438,2]
[402607205,1768722643798,-500.0,0.00016438,2]
[402607206,1768722643807,-440.88114628,0.00016438,2]
[402607207,1768722643816,-722.35,0.00016438,2]
[402607208,1768722643825,-500.0,0.00016438,2]
[402607209,1768722643834,-500.0,0.00016438,2]
[402607210,1768722643843,-500.0,0.00016438,2]
[402607211,1768722643853,-765.4,0.00016438,2]
[402607212,1768722643862,-624.64,0.00016438,2]
[402607213,1768722643871,-500.0,0.00016438,2]
[402607214,1768722643881,-500.0,0.00016438,2]
[402607215,1768722643890,-500.0,0.00016438,2]
[402607216,1768722643899,-500.0,0.00016438,2]
[402607217,1768722643908,-500.0,0.00016438,2]
[402607218,1768722643918,-500.0,0.00016438,2]
[402607219,1768722643927,-500.0,0.00016438,2]
[402607220,1768722643937,-500.0,0.00016438,2]
[402607221,1768722643947,-500.0,0.00016438,2]
[402607222,1768722643956,-500.0,0.00016438,2]
[402607223,1768722643965,-500.0,0.00016438,2]
[402607224,1768722643974,-500.0,0.00016438,2]
[402607225,1768722643984,-500.0,0.00016438,2]
[402607226,1768722643993,-500.0,0.00016438,2]
[402607227,1768722644002,-500.0,0.00016438,2]
[402607228,1768722644011,-507.60933362,0.00016438,2]
[402607229,1768722644021,-500.0,0.00016438,2]
[402607230,1768722644030,-500.0,0.00016438,2]
[402607231,1768722644039,-626.42247154,0.00016438,2]
[402607232,1768722644049,-500.0,0.00016438,2]
[402607233,1768722644058,-500.0,0.00016438,2]
[402607234,1768722644067,-500.0,0.00016438,2]
[402607235,1768722644076,-500.0,0.00016438,2]
[402607236,1768722644086,-500.0,0.00016438,2]
[402607237,1768722644095,-500.0,0.00016438,2]
[402607238,1768722644105,-500.0,0.00016438,2]
[402607239,1768722644114,-500.0,0.00016438,2]
[402607240,1768722644123,-500.0,0.00016438,2]
[402607241,1768722644132,-500.0,0.00016438,2]
[402607242,1768722644142,-500.0,0.00016438,2]
[402607243,1768722644151,-500.0,0.00016438,2]
[402607244,1768722644160,-500.0,0.00016438,2]
[402607245,1768722644169,-500.0,0.00016438,2]
[402607246,1768722644179,-500.0,0.00016438,2]
[402607247,1768722644188,-500.0,0.00016438,2]
[402607248,1768722644197,-523.58443193,0.00016438,2]
[402607249,1768722644207,-500.0,0.00016438,2]
[402607250,1768722644216,-500.0,0.00016438,2]
[402607251,1768722644226,-500.0,0.00016438,2]
[402607252,1768722644235,-500.0,0.00016438,2]
[402607253,1768722644244,-500.0,0.00016438,2]
[402607254,1768722644254,-500.0,0.00016438,2]
[402607255,1768722644264,-500.0,0.00016438,2]
[402607256,1768722644273,-500.0,0.00016438,2]
[402607257,1768722644282,-500.0,0.00016438,2]
[402607258,1768722644295,-500.0,0.00016438,2]
[402607259,1768722644304,-500.0,0.00016438,2]
[402607260,1768722644314,-500.0,0.00016438,2]
[402607261,1768722644323,-482.84390062,0.00016438,2]
[402607262,1768722644333,-500.0,0.00016438,2]
[402607263,1768722644343,-500.0,0.00016438,2]
[402607264,1768722644353,-500.0,0.00016438,2]
[402607265,1768722644362,-500.0,0.00016438,2]
[402607266,1768722644374,-500.0,0.00016438,2]
[402607267,1768722644384,-500.0,0.00016438,2]
[402607268,1768722644394,-500.0,0.00016438,2]
[402607269,1768722644403,-500.0,0.00016438,2]
[402607270,1768722644412,-500.0,0.00016438,2]
[402607271,1768722644421,-500.0,0.00016438,2]
[402607272,1768722644430,-500.0,0.00016438,2]
[402607273,1768722644440,-500.0,0.00016438,2]
[402607274,1768722644449,-500.0,0.00016438,2]
[402607275,1768722644458,-500.0,0.00016438,2]
[402607276,1768722644467,-500.0,0.00016438,2]
[402607277,1768722644477,-843.01,0.00016438,2]
[402607278,1768722644486,-160.05555775,0.00016438,2]
[402607279,1768722644495,-500.0,0.00016438,2]
[402607280,1768722644504,-635.88,0.00016438,2]
[402607281,1768722644513,-500.0,0.00016438,2]
[402607282,1768722644522,-500.0,0.00016438,2]
[402607283,1768722644531,-500.0,0.00016438,2]
[402607284,1768722644540,-500.0,0.00016438,2]
[402607285,1768722644549,-500.0,0.00016438,2]
[402607286,1768722644558,-500.0,0.00016438,2]
[402607287,1768722644567,-500.0,0.00016438,2]
[402607288,1768722644577,-500.0,0.00016438,2]
[402607289,1768722644587,-500.0,0.00016438,2]
[402607290,1768722644596,-500.0,0.00016438,2]
[402607291,1768722644605,-532.17207364,0.00016438,2]